[Event "*** Titled Tuesday Blitz"]
[Site "Chess.com"]
[Date "2020.04.21"]
[Round "9"]
[White "1g41-0"]
[Black "Keaton87"]
[Result "1-0"]
[WhiteElo "2450"]
[BlackElo "2642"]
[TimeControl "180+1"]
[EndTime "11:51:04 PDT"]
[Termination "1g41-0 won by resignation"]

1. e4 {[%clk 0:03:00.9]} 1... c5 {[%clk 0:03:00]} 2. Nf3 {[%clk 0:03:01]} 2...
d6 {[%clk 0:03:00.7]} 3. d4 {[%clk 0:03:01.6]} 3... Nf6 {[%clk 0:03:01.4]} 4.
Nc3 {[%clk 0:03:00.4]} 4... cxd4 {[%clk 0:03:01.9]} 5. Nxd4 {[%clk 0:03:01.1]}
5... g6 {[%clk 0:03:02.4]} 6. Be3 {[%clk 0:03:01.5]} 6... Bg7 {[%clk 0:03:03]}
7. f3 {[%clk 0:03:01.8]} 7... O-O {[%clk 0:03:03.6]} 8. Qd2 {[%clk 0:03:02.4]}
8... Nc6 {[%clk 0:03:04.2]} 9. Bc4 {[%clk 0:03:02.5]} 9... Bd7 {[%clk
0:03:04.3]} 10. O-O-O {[%clk 0:03:03.1]} 10... Rc8 {[%clk 0:03:04.4]} 11. Bb3
{[%clk 0:03:03.7]} 11... Nxd4 {[%clk 0:03:04.5]} 12. Bxd4 {[%clk 0:03:04.6]}
12... b5 {[%clk 0:03:04.7]} 13. Nd5 {[%clk 0:03:05]} 13... Nxd5 {[%clk
0:03:04.3]} 14. Bxg7 {[%clk 0:03:05.9]} 14... Kxg7 {[%clk 0:03:04.6]} 15. exd5
{[%clk 0:03:06.6]} 15... a5 {[%clk 0:03:05]} 16. a3 {[%clk 0:03:06.9]} 16... b4
{[%clk 0:03:05.5]} 17. axb4 {[%clk 0:03:06.7]} 17... axb4 {[%clk 0:03:06.4]} 18.
h4 {[%clk 0:03:07.2]} 18... Qa5 {[%clk 0:03:01.1]} 19. Qd4+ {[%clk 0:03:05.3]}
19... Kg8 {[%clk 0:03:00.6]} 20. h5 {[%clk 0:03:06.2]} 20... Bf5 {[%clk
0:03:00.3]} 21. Kd2 {[%clk 0:02:29.1]} 21... Bxc2 {[%clk 0:02:52.5]} 22. Ra1
{[%clk 0:02:28.2]} 22... Qxa1 {[%clk 0:02:24.1]} 23. Rxa1 {[%clk 0:02:25.8]}
23... Bxb3 {[%clk 0:02:24]} 24. h6 {[%clk 0:02:01.8]} 24... f6 {[%clk
0:02:20.7]} 25. Ra7 {[%clk 0:01:55.7]} 25... Rc5 {[%clk 0:02:17.6]} 26. Qxb4
{[%clk 0:01:43.1]} 26... Rxd5+ {[%clk 0:02:09.9]} 27. Ke3 {[%clk 0:01:39.6]}
27... Re5+ {[%clk 0:02:08.5]} 28. Kf2 {[%clk 0:01:39.3]} 28... Bd5 {[%clk
0:02:00.7]} 29. Qd4 {[%clk 0:01:32.8]} 29... Kf7 {[%clk 0:01:56.5]} 30. f4
{[%clk 0:01:24.9]} 30... Rh5 {[%clk 0:01:56.3]} 31. Ra5 {[%clk 0:01:14.7]} 31...
Ba8 {[%clk 0:01:46.2]} 32. Qc4+ {[%clk 0:01:11.9]} 32... d5 {[%clk 0:01:40.9]}
33. Qa4 {[%clk 0:01:02.7]} 33... Bb7 {[%clk 0:01:38.6]} 34. Ra7 {[%clk
0:00:58.1]} 34... Bc8 {[%clk 0:01:36.8]} 35. Qb4 {[%clk 0:00:47.3]} 35... Re8
{[%clk 0:01:35.2]} 36. Qc5 {[%clk 0:00:47]} 36... Rxh6 {[%clk 0:01:30.6]} 37.
Qxd5+ {[%clk 0:00:47.1]} 37... Be6 {[%clk 0:01:30.8]} 38. Qc5 {[%clk 0:00:46.1]}
38... Rh5 {[%clk 0:01:30.2]} 39. Qc3 {[%clk 0:00:41.6]} 39... Rb5 {[%clk
0:01:29.4]} 40. b4 {[%clk 0:00:40.9]} 40... Reb8 {[%clk 0:01:26.7]} 41. Qc7
{[%clk 0:00:41]} 41... Re8 {[%clk 0:01:26.7]} 42. Rb7 {[%clk 0:00:35.9]} 42...
Rxb7 {[%clk 0:01:24.7]} 43. Qxb7 {[%clk 0:00:36.8]} 43... Rc8 {[%clk 0:01:23.9]}
44. b5 {[%clk 0:00:35.9]} 44... Rc2+ {[%clk 0:01:23.9]} 45. Ke3 {[%clk 0:00:35]}
45... Rb2 {[%clk 0:01:19.5]} 46. b6 {[%clk 0:00:35.1]} 46... Rb3+ {[%clk
0:01:16.9]} 47. Kf2 {[%clk 0:00:34.5]} 47... Rb2+ {[%clk 0:01:12.7]} 48. Kg1
{[%clk 0:00:34.5]} 48... Rb1+ {[%clk 0:01:00.7]} 49. Kh2 {[%clk 0:00:34.5]}
49... Bc8 {[%clk 0:00:49.5]} 50. Qxc8 {[%clk 0:00:30.3]} 50... Rxb6 {[%clk
0:00:50]} 51. Qh8 {[%clk 0:00:30.7]} 51... f5 {[%clk 0:00:41]} 52. Qxh7+ {[%clk
0:00:29.6]} 52... Kf6 {[%clk 0:00:41]} 53. Qg8 {[%clk 0:00:28.1]} 53... Rd6
{[%clk 0:00:37.2]} 54. Qf8+ {[%clk 0:00:25.3]} 54... Ke6 {[%clk 0:00:37.4]} 55.
Kg3 {[%clk 0:00:25]} 55... Rd2 {[%clk 0:00:34.5]} 56. Qc8+ {[%clk 0:00:22.8]}
56... Kf7 {[%clk 0:00:33.3]} 57. Qc4+ {[%clk 0:00:21.7]} 57... Kf8 {[%clk
0:00:32.8]} 58. Qc3 {[%clk 0:00:20.7]} 58... Ra2 {[%clk 0:00:26.3]} 59. Qh8+
{[%clk 0:00:18]} 59... Kf7 {[%clk 0:00:26]} 60. Qh7+ {[%clk 0:00:18.9]} 60...
Kf6 {[%clk 0:00:25.7]} 61. Qg8 {[%clk 0:00:19.5]} 61... Rd2 {[%clk 0:00:24.3]}
62. Qf8+ {[%clk 0:00:19]} 62... Ke6 {[%clk 0:00:24.5]} 63. Qg7 {[%clk
0:00:19.5]} 63... Rd3+ {[%clk 0:00:18.7]} 64. Kh2 {[%clk 0:00:19.8]} 64... Kd6
{[%clk 0:00:16.5]} 65. Qxg6+ {[%clk 0:00:19.8]} 65... e6 {[%clk 0:00:17.1]} 66.
Qf6 {[%clk 0:00:19.5]} 66... Rd5 {[%clk 0:00:14]} 67. Qd8+ {[%clk 0:00:19.7]}
67... Kc6 {[%clk 0:00:13.9]} 68. Qe7 {[%clk 0:00:19.1]} 68... Rd6 {[%clk
0:00:13.2]} 69. Kg3 {[%clk 0:00:19.6]} 69... Kd5 {[%clk 0:00:14.1]} 70. Qb7+
{[%clk 0:00:18.8]} 70... Rc6 {[%clk 0:00:14.2]} 71. Kh4 {[%clk 0:00:18.1]} 71...
Kd6 {[%clk 0:00:15.1]} 72. Kg5 {[%clk 0:00:17.9]} 72... Rc2 {[%clk 0:00:14.1]}
73. Qb6+ {[%clk 0:00:17.1]} 73... Kd5 {[%clk 0:00:14.5]} 74. Qd8+ {[%clk
0:00:17.4]} 74... Ke4 {[%clk 0:00:13.3]} 75. Qa8+ {[%clk 0:00:17.6]} 75... Ke3
{[%clk 0:00:12.6]} 76. Qa7+ {[%clk 0:00:16.9]} 76... Ke4 {[%clk 0:00:11.2]} 77.
Qb7+ {[%clk 0:00:17.3]} 77... Ke3 {[%clk 0:00:10.8]} 78. Qb6+ {[%clk 0:00:17.7]}
78... Ke2 {[%clk 0:00:07.7]} 79. Qxe6+ {[%clk 0:00:18]} 79... Kf2 {[%clk
0:00:07.5]} 80. Qxf5 {[%clk 0:00:18.2]} 1-0

[Event "*** Titled Tuesday Blitz"]
[Site "Chess.com"]
[Date "2020.04.21"]
[Round "9"]
[White "ChessWarrior7197"]
[Black "Nikolakis2014"]
[Result "0-1"]
[WhiteElo "2865"]
[BlackElo "2716"]
[TimeControl "180+1"]
[EndTime "11:51:08 PDT"]
[Termination "Nikolakis2014 won on time"]

1. c4 {[%clk 0:03:00.9]} 1... Nf6 {[%clk 0:02:54.8]} 2. Nc3 {[%clk 0:02:59.2]}
2... e6 {[%clk 0:02:53.1]} 3. d4 {[%clk 0:02:57.2]} 3... Bb4 {[%clk 0:02:52]} 4.
e3 {[%clk 0:02:55.4]} 4... O-O {[%clk 0:02:50]} 5. Bd2 {[%clk 0:02:55.6]} 5...
b6 {[%clk 0:02:49.5]} 6. Nf3 {[%clk 0:02:55.7]} 6... Bb7 {[%clk 0:02:49.6]} 7.
Bd3 {[%clk 0:02:55.6]} 7... d6 {[%clk 0:02:47.7]} 8. O-O {[%clk 0:02:53.5]} 8...
Nbd7 {[%clk 0:02:47]} 9. Qc2 {[%clk 0:02:51.2]} 9... e5 {[%clk 0:02:38]} 10. d5
{[%clk 0:02:38.6]} 10... Nc5 {[%clk 0:02:24.4]} 11. Be2 {[%clk 0:02:36.6]} 11...
a5 {[%clk 0:02:21.9]} 12. b3 {[%clk 0:02:31.8]} 12... c6 {[%clk 0:02:11.3]} 13.
dxc6 {[%clk 0:02:29.7]} 13... Bxc6 {[%clk 0:02:11.4]} 14. Rfd1 {[%clk
0:02:30.2]} 14... Qe7 {[%clk 0:02:06.8]} 15. Be1 {[%clk 0:02:14]} 15... Rfc8
{[%clk 0:02:03.2]} 16. Qb2 {[%clk 0:02:09.8]} 16... h6 {[%clk 0:01:58.7]} 17.
Nd5 {[%clk 0:01:59.3]} 17... Bxd5 {[%clk 0:01:42.7]} 18. cxd5 {[%clk 0:01:57.2]}
18... Bxe1 {[%clk 0:01:39.3]} 19. Nxe1 {[%clk 0:01:58.1]} 19... Qb7 {[%clk
0:01:37.7]} 20. Bf3 {[%clk 0:01:18.6]} 20... b5 {[%clk 0:01:36.7]} 21. Rac1
{[%clk 0:01:12.1]} 21... b4 {[%clk 0:01:35.7]} 22. Rc4 {[%clk 0:01:06.5]} 22...
e4 {[%clk 0:01:27.8]} 23. Be2 {[%clk 0:01:05.9]} 23... Nxd5 {[%clk 0:01:27.3]}
24. Bf1 {[%clk 0:01:05.1]} 24... a4 {[%clk 0:01:15.7]} 25. Nc2 {[%clk
0:01:01.7]} 25... axb3 {[%clk 0:00:56.7]} 26. axb3 {[%clk 0:01:02.6]} 26... Nc3
{[%clk 0:00:56.5]} 27. Ra1 {[%clk 0:00:56.8]} 27... Rxa1 {[%clk 0:00:53]} 28.
Qxa1 {[%clk 0:00:45.3]} 28... Ra8 {[%clk 0:00:40.8]} 29. Qe1 {[%clk 0:00:40.8]}
29... Nd3 {[%clk 0:00:27.2]} 30. Qd2 {[%clk 0:00:34.2]} 30... d5 {[%clk
0:00:24.3]} 31. Rd4 {[%clk 0:00:29.5]} 31... Nb1 {[%clk 0:00:17.3]} 32. Qd1
{[%clk 0:00:27.6]} 32... Nc3 {[%clk 0:00:16.7]} 33. Qd2 {[%clk 0:00:28]} 33...
Ra2 {[%clk 0:00:15.2]} 34. Bxd3 {[%clk 0:00:27]} 34... exd3 {[%clk 0:00:15.1]}
35. Qxd3 {[%clk 0:00:27.9]} 35... Qc6 {[%clk 0:00:15.2]} 36. h4 {[%clk 0:00:26]}
36... Qf6 {[%clk 0:00:13.8]} 37. Rf4 {[%clk 0:00:25]} 37... Qe5 {[%clk
0:00:12.8]} 38. Rxb4 {[%clk 0:00:23.3]} 38... Ne4 {[%clk 0:00:10.3]} 39. Ra4
{[%clk 0:00:21.2]} 39... Rb2 {[%clk 0:00:09.3]} 40. Ra8+ {[%clk 0:00:19.7]}
40... Kh7 {[%clk 0:00:08.8]} 41. g3 {[%clk 0:00:09.5]} 41... Qf6 {[%clk
0:00:07.9]} 42. Qe2 {[%clk 0:00:04.5]} 42... Nc3 {[%clk 0:00:05.8]} 43. Qd3+
{[%clk 0:00:04.3]} 43... Ne4 {[%clk 0:00:06.1]} 44. Qe2 {[%clk 0:00:04.8]} 44...
Qc3 {[%clk 0:00:03.8]} 45. Qf3 {[%clk 0:00:03.1]} 45... Rxc2 {[%clk 0:00:03.8]}
46. Qf5+ {[%clk 0:00:03.4]} 46... g6 {[%clk 0:00:04.1]} 47. Qxf7+ {[%clk
0:00:03.5]} 47... Qg7 {[%clk 0:00:04.8]} 48. Qxd5 {[%clk 0:00:03.9]} 48... Nxf2
{[%clk 0:00:04.1]} 49. Rd8 {[%clk 0:00:02.1]} 49... Nh3+ {[%clk 0:00:03.1]} 50.
Kf1 {[%clk 0:00:02.1]} 50... Qa1+ {[%clk 0:00:02.8]} 51. Qd1 {[%clk 0:00:02.4]}
51... Rc1 {[%clk 0:00:03.1]} 52. Rd7+ {[%clk 0:00:01.6]} 52... Kg8 {[%clk
0:00:03.4]} 53. Rd8+ {[%clk 0:00:02.5]} 53... Kf7 {[%clk 0:00:03.5]} 54. Rd7+
{[%clk 0:00:03.4]} 54... Ke6 {[%clk 0:00:03.7]} 55. Rd6+ {[%clk 0:00:03.8]}
55... Ke5 {[%clk 0:00:03.8]} 56. Rd5+ {[%clk 0:00:04.2]} 56... Ke4 {[%clk
0:00:03.9]} 57. Rd4+ {[%clk 0:00:04.5]} 57... Qxd4 {[%clk 0:00:03.8]} 58. Qxc1
{[%clk 0:00:03.9]} 58... Qxe3 {[%clk 0:00:04.3]} 0-1

[Event "*** Titled Tuesday Blitz"]
[Site "Chess.com"]
[Date "2020.04.21"]
[Round "9"]
[White "MFguimaraes"]
[Black "Neimar24"]
[Result "1/2-1/2"]
[WhiteElo "2429"]
[BlackElo "2564"]
[TimeControl "180+1"]
[EndTime "11:51:11 PDT"]
[Termination "Game drawn by agreement"]

1. e4 {[%clk 0:03:00.9]} 1... e6 {[%clk 0:02:58.9]} 2. d4 {[%clk 0:03:00.7]}
2... d5 {[%clk 0:02:59.8]} 3. Nd2 {[%clk 0:03:01.1]} 3... c5 {[%clk 0:02:58.5]}
4. exd5 {[%clk 0:03:00.3]} 4... Qxd5 {[%clk 0:02:58]} 5. Ngf3 {[%clk 0:03:00.2]}
5... cxd4 {[%clk 0:02:57.6]} 6. Bc4 {[%clk 0:03:00.4]} 6... Qd7 {[%clk
0:02:57.5]} 7. O-O {[%clk 0:02:59.2]} 7... Nc6 {[%clk 0:02:57.5]} 8. Nb3 {[%clk
0:02:59.4]} 8... a6 {[%clk 0:02:56.2]} 9. Nbxd4 {[%clk 0:02:58.9]} 9... Bd6
{[%clk 0:02:56.3]} 10. Bg5 {[%clk 0:02:39.5]} 10... h6 {[%clk 0:02:53.7]} 11.
Bh4 {[%clk 0:02:38.9]} 11... Nge7 {[%clk 0:02:53.6]} 12. Re1 {[%clk 0:02:28.4]}
12... Qc7 {[%clk 0:02:52.4]} 13. Bg3 {[%clk 0:01:49.1]} 13... Bxg3 {[%clk
0:02:35.2]} 14. hxg3 {[%clk 0:01:48.2]} 14... O-O {[%clk 0:02:33.2]} 15. c3
{[%clk 0:01:20.7]} 15... Nxd4 {[%clk 0:02:17]} 16. Qxd4 {[%clk 0:01:20.1]} 16...
Nf5 {[%clk 0:02:17]} 17. Qf4 {[%clk 0:01:19.2]} 17... Qc5 {[%clk 0:02:13.2]} 18.
b4 {[%clk 0:01:08.4]} 18... Qb6 {[%clk 0:02:06.2]} 19. Ne5 {[%clk 0:01:01.7]}
19... a5 {[%clk 0:01:55.1]} 20. a3 {[%clk 0:00:52.7]} 20... axb4 {[%clk
0:01:53.5]} 21. axb4 {[%clk 0:00:45]} 21... Rxa1 {[%clk 0:01:51.4]} 22. Rxa1
{[%clk 0:00:45.9]} 22... Rd8 {[%clk 0:01:51.4]} 23. Bd3 {[%clk 0:00:35.5]} 23...
g5 {[%clk 0:01:32.9]} 24. Qf3 {[%clk 0:00:29.9]} 24... Qc7 {[%clk 0:01:27.5]}
25. Bxf5 {[%clk 0:00:25.5]} 25... Qxe5 {[%clk 0:01:24.1]} 26. Be4 {[%clk
0:00:21.6]} 26... b6 {[%clk 0:01:15.4]} 27. Ra8 {[%clk 0:00:18.7]} 27... Kg7
{[%clk 0:01:13.3]} 28. Ra7 {[%clk 0:00:15.1]} 28... Rd7 {[%clk 0:01:10.6]} 29.
Rxd7 {[%clk 0:00:14.6]} 29... Bxd7 {[%clk 0:01:10.3]} 30. Qe3 {[%clk 0:00:14.3]}
30... f5 {[%clk 0:01:04.2]} 31. Bf3 {[%clk 0:00:14.2]} 31... Qxe3 {[%clk
0:00:59.1]} 32. fxe3 {[%clk 0:00:15.1]} 32... Kf6 {[%clk 0:00:59.8]} 33. Kf2
{[%clk 0:00:14.9]} 33... Ke5 {[%clk 0:00:59.9]} 34. Bb7 {[%clk 0:00:14.3]} 34...
Kd6 {[%clk 0:00:59.3]} 35. Ke2 {[%clk 0:00:13.6]} 35... Bb5+ {[%clk 0:00:58.3]}
36. Kf2 {[%clk 0:00:12.6]} 36... e5 {[%clk 0:00:58.2]} 37. Bc8 {[%clk
0:00:11.8]} 37... Bd3 {[%clk 0:00:58.3]} 38. Bb7 {[%clk 0:00:11.8]} 38... g4
{[%clk 0:00:56.5]} 39. Ke1 {[%clk 0:00:11.6]} 39... Bc4 {[%clk 0:00:51.9]} 40.
Kd2 {[%clk 0:00:11.7]} 40... b5 {[%clk 0:00:47.9]} 41. Ke1 {[%clk 0:00:11]}
41... Bd5 {[%clk 0:00:46.6]} 42. Bc8 {[%clk 0:00:09.2]} 42... Be4 {[%clk
0:00:45.2]} 43. Kd2 {[%clk 0:00:08.4]} 43... h5 {[%clk 0:00:43.1]} 44. Ba6
{[%clk 0:00:07.5]} 44... Kc6 {[%clk 0:00:40.4]} 45. Bc8 {[%clk 0:00:07]} 45...
Kc7 {[%clk 0:00:40.6]} 46. Be6 {[%clk 0:00:07]} 46... Kd6 {[%clk 0:00:39.2]} 47.
Bc8 {[%clk 0:00:07.2]} 47... Bxg2 {[%clk 0:00:36.7]} 48. Bxf5 {[%clk 0:00:06.7]}
48... Bf3 {[%clk 0:00:36.3]} 49. e4 {[%clk 0:00:06]} 49... Ke7 {[%clk
0:00:32.5]} 50. Ke3 {[%clk 0:00:06.5]} 50... Kf6 {[%clk 0:00:32.5]} 51. Kf2
{[%clk 0:00:06.9]} 51... Kg5 {[%clk 0:00:30.7]} 52. Kg1 {[%clk 0:00:06.7]} 52...
h4 {[%clk 0:00:30.6]} 53. gxh4+ {[%clk 0:00:07.6]} 53... Kxh4 {[%clk 0:00:31]}
54. Kf2 {[%clk 0:00:08.3]} 54... Kg5 {[%clk 0:00:30.3]} 55. Bd7 {[%clk
0:00:08.5]} 55... Kf4 {[%clk 0:00:29.8]} 56. Bxb5 {[%clk 0:00:08.6]} 56... g3+
{[%clk 0:00:30.4]} 57. Kg1 {[%clk 0:00:08.7]} 57... Bxe4 {[%clk 0:00:30.7]} 58.
c4 {[%clk 0:00:09.1]} 58... Bf3 {[%clk 0:00:27.6]} 59. c5 {[%clk 0:00:10]} 59...
e4 {[%clk 0:00:28.1]} 60. c6 {[%clk 0:00:09.9]} 60... e3 {[%clk 0:00:28.4]} 61.
c7 {[%clk 0:00:10.1]} 61... Bg4 {[%clk 0:00:28.5]} 62. Ba6 {[%clk 0:00:09.1]}
62... Kf3 {[%clk 0:00:26.5]} 63. Bb7+ {[%clk 0:00:04]} 63... Ke2 {[%clk
0:00:26.1]} 64. c8=Q {[%clk 0:00:04.1]} 64... Bxc8 {[%clk 0:00:25.2]} 65. Bxc8
{[%clk 0:00:05]} 65... Kd3 {[%clk 0:00:24.9]} 66. Bg4 {[%clk 0:00:05.2]} 66...
Kc4 {[%clk 0:00:24.6]} 67. Kg2 {[%clk 0:00:04.9]} 67... Kxb4 {[%clk 0:00:24.5]}
68. Kxg3 {[%clk 0:00:05.6]} 1/2-1/2

[Event "*** Titled Tuesday Blitz"]
[Site "Chess.com"]
[Date "2020.04.21"]
[Round "9"]
[White "731291"]
[Black "tigra"]
[Result "1/2-1/2"]
[WhiteElo "2615"]
[BlackElo "2775"]
[TimeControl "180+1"]
[EndTime "11:51:13 PDT"]
[Termination "Game drawn - insufficient material"]

1. d4 {[%clk 0:02:58.2]} 1... Nf6 {[%clk 0:02:59.6]} 2. Nf3 {[%clk 0:02:54.1]}
2... g6 {[%clk 0:02:59.8]} 3. Nbd2 {[%clk 0:02:53.2]} 3... d5 {[%clk 0:02:59]}
4. b4 {[%clk 0:02:52.3]} 4... Ne4 {[%clk 0:02:39.4]} 5. Bb2 {[%clk 0:02:51]}
5... Bg7 {[%clk 0:02:33.4]} 6. e3 {[%clk 0:02:50.8]} 6... c5 {[%clk 0:02:21.9]}
7. bxc5 {[%clk 0:02:46.4]} 7... Nxc5 {[%clk 0:02:22.2]} 8. Bb5+ {[%clk
0:02:34.3]} 8... Bd7 {[%clk 0:02:20.2]} 9. Bxd7+ {[%clk 0:02:33.4]} 9... Nbxd7
{[%clk 0:02:20.1]} 10. O-O {[%clk 0:02:32.8]} 10... Na4 {[%clk 0:02:19.2]} 11.
Rb1 {[%clk 0:02:32.7]} 11... b5 {[%clk 0:02:17]} 12. e4 {[%clk 0:02:15.9]} 12...
dxe4 {[%clk 0:02:09.6]} 13. Nxe4 {[%clk 0:02:16.8]} 13... O-O {[%clk 0:02:07]}
14. Re1 {[%clk 0:02:14.1]} 14... Nf6 {[%clk 0:02:02.3]} 15. Nxf6+ {[%clk
0:02:03.3]} 15... Bxf6 {[%clk 0:02:02.3]} 16. Ne5 {[%clk 0:02:03.3]} 16... Qd5
{[%clk 0:01:59]} 17. Qd3 {[%clk 0:01:59.2]} 17... Bxe5 {[%clk 0:01:52.2]} 18.
dxe5 {[%clk 0:01:53.3]} 18... Qxd3 {[%clk 0:01:51.6]} 19. cxd3 {[%clk 0:01:54]}
19... a5 {[%clk 0:01:40]} 20. e6 {[%clk 0:01:50.1]} 20... f6 {[%clk 0:01:34.2]}
21. Re4 {[%clk 0:01:44.3]} 21... Nc5 {[%clk 0:01:30.6]} 22. Re3 {[%clk
0:01:44.4]} 22... Rfd8 {[%clk 0:01:28.7]} 23. d4 {[%clk 0:01:32.9]} 23... Na4
{[%clk 0:01:28.8]} 24. Ba1 {[%clk 0:01:26.7]} 24... Rac8 {[%clk 0:01:24.7]} 25.
g3 {[%clk 0:01:21.5]} 25... Rd5 {[%clk 0:01:22.4]} 26. Reb3 {[%clk 0:01:19.7]}
26... f5 {[%clk 0:01:01.3]} 27. Kg2 {[%clk 0:01:19.3]} 27... Rb8 {[%clk
0:00:52.6]} 28. a3 {[%clk 0:01:12.7]} 28... Kg7 {[%clk 0:00:52.4]} 29. Bc3
{[%clk 0:01:12.3]} 29... Nxc3 {[%clk 0:00:45.7]} 30. Rxc3 {[%clk 0:01:13.2]}
30... Rxd4 {[%clk 0:00:45.8]} 31. Rc5 {[%clk 0:01:09.9]} 31... Ra4 {[%clk
0:00:41.9]} 32. Rcxb5 {[%clk 0:01:08.4]} 32... Rxb5 {[%clk 0:00:41.4]} 33. Rxb5
{[%clk 0:01:09.3]} 33... Rxa3 {[%clk 0:00:42.3]} 34. Rb6 {[%clk 0:01:09.4]}
34... Kf6 {[%clk 0:00:41.6]} 35. Ra6 {[%clk 0:01:09.5]} 35... g5 {[%clk
0:00:41.2]} 36. h3 {[%clk 0:01:06.3]} 36... h5 {[%clk 0:00:40.5]} 37. Kg1 {[%clk
0:01:06.1]} 37... g4 {[%clk 0:00:21.4]} 38. hxg4 {[%clk 0:01:01.9]} 38... hxg4
{[%clk 0:00:16]} 39. Kg2 {[%clk 0:01:01.5]} 39... Ra1 {[%clk 0:00:14.9]} 40. Kh2
{[%clk 0:01:01.6]} 40... a4 {[%clk 0:00:14.5]} 41. Kg2 {[%clk 0:01:01.9]} 41...
a3 {[%clk 0:00:15]} 42. Kh2 {[%clk 0:01:02.1]} 42... Ke5 {[%clk 0:00:15.2]} 43.
Kg2 {[%clk 0:01:01.9]} 43... Ke4 {[%clk 0:00:15.1]} 44. Ra7 {[%clk 0:01:00.9]}
44... a2 {[%clk 0:00:05.5]} 45. Ra4+ {[%clk 0:01:00.5]} 45... Ke5 {[%clk
0:00:05.4]} 46. Ra6 {[%clk 0:01:00.6]} 46... Kd5 {[%clk 0:00:05.7]} 47. Kh2
{[%clk 0:01:00.5]} 47... Kc4 {[%clk 0:00:06]} 48. Kg2 {[%clk 0:00:58.3]} 48...
Kb3 {[%clk 0:00:06.3]} 49. Rb6+ {[%clk 0:00:58.3]} 49... Kc3 {[%clk 0:00:07.1]}
50. Ra6 {[%clk 0:00:57.9]} 50... Kd3 {[%clk 0:00:07.6]} 51. Ra7 {[%clk
0:00:54.6]} 51... Ke2 {[%clk 0:00:07.5]} 52. Ra6 {[%clk 0:00:51.5]} 52... Kd3
{[%clk 0:00:07.1]} 53. Ra3+ {[%clk 0:00:50.6]} 53... Ke4 {[%clk 0:00:07.2]} 54.
Ra6 {[%clk 0:00:50.3]} 54... Ke5 {[%clk 0:00:07.4]} 55. Kh2 {[%clk 0:00:50.3]}
55... f4 {[%clk 0:00:07.1]} 56. gxf4+ {[%clk 0:00:49.3]} 56... Kxf4 {[%clk
0:00:08]} 57. Kg2 {[%clk 0:00:49.2]} 57... Kf5 {[%clk 0:00:08.1]} 58. Kh2 {[%clk
0:00:48.9]} 58... Ke4 {[%clk 0:00:08.4]} 59. Kg2 {[%clk 0:00:49.2]} 59... Kf4
{[%clk 0:00:08.6]} 60. Ra4+ {[%clk 0:00:48.4]} 60... Kg5 {[%clk 0:00:08.9]} 61.
Ra6 {[%clk 0:00:49.2]} 61... Kh4 {[%clk 0:00:08.8]} 62. Ra5 {[%clk 0:00:46.1]}
62... Re1 {[%clk 0:00:06.2]} 63. Rxa2 {[%clk 0:00:45]} 63... Rxe6 {[%clk
0:00:07.1]} 64. Ra5 {[%clk 0:00:44.4]} 64... Re2 {[%clk 0:00:07.2]} 65. Ra8
{[%clk 0:00:41]} 65... e5 {[%clk 0:00:06.8]} 66. Rh8+ {[%clk 0:00:41.3]} 66...
Kg5 {[%clk 0:00:07.2]} 67. Rg8+ {[%clk 0:00:41.5]} 67... Kf4 {[%clk 0:00:07.5]}
68. Rf8+ {[%clk 0:00:42]} 68... Kg5 {[%clk 0:00:07.4]} 69. Rg8+ {[%clk
0:00:42.3]} 69... Kf5 {[%clk 0:00:08.1]} 70. Rf8+ {[%clk 0:00:42.6]} 70... Ke6
{[%clk 0:00:08.5]} 71. Rg8 {[%clk 0:00:42.9]} 71... Re4 {[%clk 0:00:06]} 72. Kg3
{[%clk 0:00:42.3]} 72... Kf5 {[%clk 0:00:04.6]} 73. Rf8+ {[%clk 0:00:42.5]}
73... Kg5 {[%clk 0:00:05.5]} 74. Rg8+ {[%clk 0:00:42.8]} 74... Kf5 {[%clk
0:00:06.4]} 75. Rf8+ {[%clk 0:00:43.1]} 75... Ke6 {[%clk 0:00:06.6]} 76. Rg8
{[%clk 0:00:43.4]} 76... Rd4 {[%clk 0:00:06.4]} 77. Rxg4 {[%clk 0:00:42.9]}
77... e4 {[%clk 0:00:07.3]} 78. Rg5 {[%clk 0:00:38]} 78... Rd3+ {[%clk
0:00:07.6]} 79. Kf4 {[%clk 0:00:36.8]} 79... Rf3+ {[%clk 0:00:08.2]} 80. Kxe4
{[%clk 0:00:37.1]} 80... Rxf2 {[%clk 0:00:09.1]} 81. Rg6+ {[%clk 0:00:37.4]}
81... Rf6 {[%clk 0:00:09.5]} 82. Rxf6+ {[%clk 0:00:37.8]} 82... Kxf6 {[%clk
0:00:10.4]} 1/2-1/2